[Event "*** Titled Tuesday Blitz"]
[Site "Chess.com"]
[Date "2020.05.19"]
[Round "3"]
[White "AlexVanGog"]
[Black "MF1966Idrisov"]
[Result "1-0"]
[WhiteElo "2617"]
[BlackElo "2336"]
[TimeControl "180+1"]
[EndTime "12:27:43 PDT"]
[Termination "AlexVanGog won by resignation"]

1. Nf3 {[%clk 0:03:00.9]} 1... c6 {[%clk 0:02:59]} 2. c4 {[%clk 0:03:00]} 2...
d5 {[%clk 0:02:58.1]} 3. e3 {[%clk 0:03:00.4]} 3... Nf6 {[%clk 0:02:58.2]} 4.
Nc3 {[%clk 0:03:00.9]} 4... g6 {[%clk 0:02:58.5]} 5. cxd5 {[%clk 0:03:00.5]}
5... cxd5 {[%clk 0:02:57.7]} 6. Bb5+ {[%clk 0:03:00.6]} 6... Nc6 {[%clk
0:02:57.3]} 7. Ne5 {[%clk 0:02:59.7]} 7... Bd7 {[%clk 0:02:56.6]} 8. Nxd7 {[%clk
0:02:59.8]} 8... Qxd7 {[%clk 0:02:55.7]} 9. O-O {[%clk 0:03:00.2]} 9... Bg7
{[%clk 0:02:55]} 10. d4 {[%clk 0:03:00.7]} 10... O-O {[%clk 0:02:54.1]} 11. Bd2
{[%clk 0:03:00.7]} 11... Rfc8 {[%clk 0:02:50.7]} 12. Rc1 {[%clk 0:02:56.1]}
12... a6 {[%clk 0:02:50.4]} 13. Bd3 {[%clk 0:02:55.3]} 13... b5 {[%clk
0:02:42.5]} 14. Qe2 {[%clk 0:02:54.5]} 14... e6 {[%clk 0:02:25.5]} 15. h3 {[%clk
0:02:50.8]} 15... Bf8 {[%clk 0:02:23.6]} 16. Rfd1 {[%clk 0:02:50.3]} 16... Rc7
{[%clk 0:02:17.5]} 17. a4 {[%clk 0:02:46.9]} 17... b4 {[%clk 0:02:16.5]} 18. Nb1
{[%clk 0:02:46.7]} 18... Na5 {[%clk 0:02:05]} 19. Rxc7 {[%clk 0:02:40]} 19...
Qxc7 {[%clk 0:02:04.2]} 20. Bxa6 {[%clk 0:02:39.9]} 20... Ne4 {[%clk 0:02:02.8]}
21. Be1 {[%clk 0:02:38]} 21... Nc4 {[%clk 0:01:53.4]} 22. Bb5 {[%clk 0:02:34.9]}
22... Ncd6 {[%clk 0:01:44.2]} 23. Nd2 {[%clk 0:02:16.6]} 23... Nxb5 {[%clk
0:01:42]} 24. Nxe4 {[%clk 0:02:15.6]} 24... dxe4 {[%clk 0:01:14.8]} 25. axb5
{[%clk 0:02:16.5]} 25... Rb8 {[%clk 0:01:10.4]} 26. d5 {[%clk 0:02:15.5]} 26...
Qb6 {[%clk 0:00:57.4]} 27. dxe6 {[%clk 0:02:09.1]} 27... fxe6 {[%clk 0:00:57.5]}
28. Qc4 {[%clk 0:02:06.4]} 28... Qxb5 {[%clk 0:00:44]} 29. Qxe6+ {[%clk
0:02:05.3]} 29... Kh8 {[%clk 0:00:43.9]} 30. Qxe4 {[%clk 0:02:05]} 30... Bg7
{[%clk 0:00:40.6]} 31. b3 {[%clk 0:02:00.8]} 31... Qe2 {[%clk 0:00:31.3]} 32.
Qd3 {[%clk 0:02:00.2]} 32... Qb2 {[%clk 0:00:25.6]} 33. Bxb4 {[%clk 0:01:55.2]}
33... Be5 {[%clk 0:00:17.5]} 34. Bd6 {[%clk 0:01:49.9]} 34... Bxd6 {[%clk
0:00:16.3]} 35. Qxd6 {[%clk 0:01:50.4]} 35... Qxb3 {[%clk 0:00:16.6]} 36. Qe5+
{[%clk 0:01:48.2]} 36... Kg8 {[%clk 0:00:16.3]} 37. Qd5+ {[%clk 0:01:48.7]}
37... Qxd5 {[%clk 0:00:15.5]} 38. Rxd5 {[%clk 0:01:47.9]} 38... Rb1+ {[%clk
0:00:16.1]} 39. Kh2 {[%clk 0:01:47.6]} 39... Kg7 {[%clk 0:00:16.2]} 40. g4
{[%clk 0:01:45.8]} 40... h6 {[%clk 0:00:15.5]} 41. Kg2 {[%clk 0:01:42.9]} 41...
Rb2 {[%clk 0:00:15.7]} 42. h4 {[%clk 0:01:42]} 42... Kf6 {[%clk 0:00:15.9]} 43.
Kg3 {[%clk 0:01:41.5]} 43... Rb3 {[%clk 0:00:15.2]} 44. Ra5 {[%clk 0:01:40.8]}
44... Rb4 {[%clk 0:00:15.2]} 45. Ra6+ {[%clk 0:01:40.9]} 45... Kf7 {[%clk
0:00:14.9]} 46. f3 {[%clk 0:01:40.9]} 46... Ra4 {[%clk 0:00:14.9]} 47. Rxa4
{[%clk 0:01:38.5]} 1-0

[Event "*** Titled Tuesday Blitz"]
[Site "Chess.com"]
[Date "2020.05.19"]
[Round "3"]
[White "Xeniya2005"]
[Black "FGHSMN"]
[Result "0-1"]
[WhiteElo "2274"]
[BlackElo "2511"]
[TimeControl "180+1"]
[EndTime "12:27:45 PDT"]
[Termination "FGHSMN won by resignation"]

1. e4 {[%clk 0:03:00.9]} 1... c5 {[%clk 0:02:59.5]} 2. Nf3 {[%clk 0:02:59.9]}
2... d6 {[%clk 0:02:59.9]} 3. d4 {[%clk 0:03:00]} 3... cxd4 {[%clk 0:03:00.6]}
4. Nxd4 {[%clk 0:03:00.6]} 4... Nf6 {[%clk 0:03:01.2]} 5. Nc3 {[%clk 0:03:00.8]}
5... a6 {[%clk 0:03:01.8]} 6. Nb3 {[%clk 0:03:00.8]} 6... Nc6 {[%clk 0:02:57.8]}
7. f4 {[%clk 0:02:50.2]} 7... g6 {[%clk 0:02:53.2]} 8. Be3 {[%clk 0:02:48.6]}
8... Bg7 {[%clk 0:02:52.1]} 9. Be2 {[%clk 0:02:40.7]} 9... O-O {[%clk
0:02:51.1]} 10. Qd2 {[%clk 0:02:34.4]} 10... b5 {[%clk 0:02:47.4]} 11. a3 {[%clk
0:02:32.3]} 11... Bb7 {[%clk 0:02:45.5]} 12. Bf3 {[%clk 0:02:30.3]} 12... Rc8
{[%clk 0:02:39.8]} 13. h4 {[%clk 0:02:27.3]} 13... h5 {[%clk 0:02:28.5]} 14. f5
{[%clk 0:02:03]} 14... Ne5 {[%clk 0:02:25.1]} 15. fxg6 {[%clk 0:01:57.1]} 15...
fxg6 {[%clk 0:02:25.7]} 16. Bh6 {[%clk 0:01:53]} 16... Rxc3 {[%clk 0:01:29.2]}
17. bxc3 {[%clk 0:01:43.4]} 17... Bxe4 {[%clk 0:01:24.7]} 18. Bxg7 {[%clk
0:01:33.5]} 18... Kxg7 {[%clk 0:01:22.6]} 19. Bxe4 {[%clk 0:01:27]} 19... Nxe4
{[%clk 0:01:23.5]} 20. Qd4 {[%clk 0:01:25.9]} 20... Ng3 {[%clk 0:01:18.8]} 21.
Rg1 {[%clk 0:01:14.3]} 21... e6 {[%clk 0:01:06.3]} 22. Rd1 {[%clk 0:01:00.5]}
22... Qf6 {[%clk 0:01:00.1]} 23. Nd2 {[%clk 0:00:35.9]} 23... Kh7 {[%clk
0:00:52.5]} 24. c4 {[%clk 0:00:19.6]} 24... Nd3+ {[%clk 0:00:41.3]} 0-1

[Event "*** Titled Tuesday Blitz"]
[Site "Chess.com"]
[Date "2020.05.19"]
[Round "3"]
[White "L_lorenzo"]
[Black "51616516516"]
[Result "1-0"]
[WhiteElo "2012"]
[BlackElo "2337"]
[TimeControl "180+1"]
[EndTime "12:27:45 PDT"]
[Termination "L_lorenzo won by checkmate"]

1. d4 {[%clk 0:02:49.3]} 1... Nf6 {[%clk 0:02:58.4]} 2. c4 {[%clk 0:02:49]} 2...
g6 {[%clk 0:02:57.5]} 3. Nc3 {[%clk 0:02:48]} 3... Bg7 {[%clk 0:02:57.4]} 4. e4
{[%clk 0:02:47.4]} 4... d6 {[%clk 0:02:56.6]} 5. f3 {[%clk 0:02:40.6]} 5... c6
{[%clk 0:02:56.1]} 6. a4 {[%clk 0:02:39.1]} 6... a5 {[%clk 0:02:53.8]} 7. Bg5
{[%clk 0:02:39.1]} 7... Na6 {[%clk 0:02:46.8]} 8. Nge2 {[%clk 0:02:33.6]} 8...
O-O {[%clk 0:02:44.9]} 9. Ng3 {[%clk 0:02:33.1]} 9... e5 {[%clk 0:02:42.2]} 10.
d5 {[%clk 0:02:30]} 10... h6 {[%clk 0:02:37.5]} 11. Be3 {[%clk 0:02:29.3]} 11...
Ne8 {[%clk 0:02:23.2]} 12. Qd2 {[%clk 0:02:13.2]} 12... Kh7 {[%clk 0:02:23]} 13.
Bd3 {[%clk 0:02:09.8]} 13... f5 {[%clk 0:02:20.4]} 14. exf5 {[%clk 0:02:09.1]}
14... gxf5 {[%clk 0:02:19.6]} 15. O-O {[%clk 0:02:05.9]} 15... Nb4 {[%clk
0:02:10.1]} 16. Bb1 {[%clk 0:02:03.8]} 16... Qh4 {[%clk 0:01:57.9]} 17. dxc6
{[%clk 0:01:58.9]} 17... bxc6 {[%clk 0:01:55.8]} 18. Bf2 {[%clk 0:01:38.8]}
18... Qxc4 {[%clk 0:01:50.9]} 19. Nh5 {[%clk 0:01:26.5]} 19... d5 {[%clk
0:01:29.5]} 20. Nxg7 {[%clk 0:01:09.9]} 20... Nxg7 {[%clk 0:01:26.6]} 21. Re1
{[%clk 0:01:01.8]} 21... e4 {[%clk 0:01:20.8]} 22. fxe4 {[%clk 0:01:00.2]} 22...
fxe4 {[%clk 0:01:21.7]} 23. Nxe4 {[%clk 0:00:51.5]} 23... dxe4 {[%clk
0:01:17.8]} 24. Rxe4 {[%clk 0:00:50.6]} 24... Qg8 {[%clk 0:00:51.4]} 25. Rh4+
{[%clk 0:00:39.4]} 25... Nf5 {[%clk 0:00:25.2]} 26. Qxh6# {[%clk 0:00:38.1]} 1-0

[Event "*** Titled Tuesday Blitz"]
[Site "Chess.com"]
[Date "2020.05.19"]
[Round "3"]
[White "vladislavkovalev"]
[Black "Megagigahiper3345"]
[Result "1-0"]
[WhiteElo "2910"]
[BlackElo "2628"]
[TimeControl "180+1"]
[EndTime "12:27:46 PDT"]
[Termination "vladislavkovalev won by resignation"]

1. e4 {[%clk 0:03:00.9]} 1... c5 {[%clk 0:03:00]} 2. Be2 {[%clk 0:03:01.2]} 2...
a6 {[%clk 0:02:48.7]} 3. d3 {[%clk 0:03:02.1]} 3... b5 {[%clk 0:02:48.4]} 4. f4
{[%clk 0:03:03]} 4... Bb7 {[%clk 0:02:48.6]} 5. Nf3 {[%clk 0:03:03.9]} 5... e6
{[%clk 0:02:49.1]} 6. c3 {[%clk 0:03:02.6]} 6... d6 {[%clk 0:02:49.6]} 7. O-O
{[%clk 0:03:03.1]} 7... Be7 {[%clk 0:02:49.9]} 8. Be3 {[%clk 0:03:02.9]} 8...
Nf6 {[%clk 0:02:50.2]} 9. Kh1 {[%clk 0:03:02.8]} 9... O-O {[%clk 0:02:50.2]} 10.
Nbd2 {[%clk 0:03:01.9]} 10... Nc6 {[%clk 0:02:49]} 11. a3 {[%clk 0:03:01.7]}
11... Qc7 {[%clk 0:02:38.6]} 12. d4 {[%clk 0:02:59.6]} 12... cxd4 {[%clk
0:02:35.8]} 13. cxd4 {[%clk 0:03:00.5]} 13... Na5 {[%clk 0:02:32.8]} 14. Rc1
{[%clk 0:02:59.4]} 14... Qd7 {[%clk 0:02:31.9]} 15. b4 {[%clk 0:02:52.3]} 15...
Nc4 {[%clk 0:02:09.4]} 16. Bxc4 {[%clk 0:02:37.2]} 16... bxc4 {[%clk 0:02:08.3]}
17. Nxc4 {[%clk 0:02:38.1]} 17... Rab8 {[%clk 0:01:22.9]} 18. e5 {[%clk
0:02:36.8]} 18... Nd5 {[%clk 0:01:20]} 19. Bd2 {[%clk 0:02:37.4]} 19... Rfc8
{[%clk 0:01:16.2]} 20. Qe2 {[%clk 0:02:36.3]} 20... Qb5 {[%clk 0:01:14.4]} 21.
exd6 {[%clk 0:02:19.8]} 21... Bxd6 {[%clk 0:01:12.4]} 22. a4 {[%clk 0:02:20.4]}
22... Qc6 {[%clk 0:00:56.9]} 23. Nfe5 {[%clk 0:02:14.1]} 23... Bxe5 {[%clk
0:00:55.4]} 24. dxe5 {[%clk 0:02:15]} 24... Qxa4 {[%clk 0:00:47.5]} 25. Nd6
{[%clk 0:02:10.6]} 25... Rxc1 {[%clk 0:00:43.8]} 26. Rxc1 {[%clk 0:02:11.5]}
26... Bc6 {[%clk 0:00:34.6]} 27. f5 {[%clk 0:01:35.9]} 27... Bd7 {[%clk
0:00:22.3]} 28. f6 {[%clk 0:01:34.8]} 28... g6 {[%clk 0:00:10.7]} 29. Qf2 {[%clk
0:01:21.3]} 29... Qa2 {[%clk 0:00:08.6]} 30. h3 {[%clk 0:01:15.9]} 30... Qb2
{[%clk 0:00:07.6]} 31. Nc4 {[%clk 0:01:04.6]} 31... Qa2 {[%clk 0:00:05.5]} 32.
Qh4 {[%clk 0:01:05.2]} 32... Qxd2 {[%clk 0:00:04.9]} 33. Nxd2 {[%clk 0:01:04.9]}
1-0

[Event "*** Titled Tuesday Blitz"]
[Site "Chess.com"]
[Date "2020.05.19"]
[Round "3"]
[White "CHESSMASTER759"]
[Black "Tolya2"]
[Result "1/2-1/2"]
[WhiteElo "2647"]
[BlackElo "2483"]
[TimeControl "180+1"]
[EndTime "12:27:46 PDT"]
[Termination "Game drawn by agreement"]

1. e4 {[%clk 0:03:00.9]} 1... c6 {[%clk 0:02:59.2]} 2. d4 {[%clk 0:02:59.7]}
2... d5 {[%clk 0:02:59.2]} 3. Nc3 {[%clk 0:03:00.6]} 3... dxe4 {[%clk
0:02:58.9]} 4. Nxe4 {[%clk 0:03:00.2]} 4... Bf5 {[%clk 0:02:58.7]} 5. Ng3 {[%clk
0:03:00.1]} 5... Bg6 {[%clk 0:02:58.4]} 6. h4 {[%clk 0:02:59.8]} 6... h6 {[%clk
0:02:58]} 7. Nf3 {[%clk 0:02:59.9]} 7... Nd7 {[%clk 0:02:57.7]} 8. h5 {[%clk
0:03:00]} 8... Bh7 {[%clk 0:02:57.3]} 9. Bd3 {[%clk 0:02:59.4]} 9... Bxd3 {[%clk
0:02:57.8]} 10. Qxd3 {[%clk 0:02:58.2]} 10... e6 {[%clk 0:02:58.2]} 11. Bf4
{[%clk 0:02:57]} 11... Qa5+ {[%clk 0:02:57.1]} 12. Bd2 {[%clk 0:02:57]} 12...
Bb4 {[%clk 0:02:57]} 13. c3 {[%clk 0:02:57.6]} 13... Be7 {[%clk 0:02:56.7]} 14.
c4 {[%clk 0:02:58.5]} 14... Bb4 {[%clk 0:02:55.9]} 15. O-O {[%clk 0:02:44.1]}
15... Ngf6 {[%clk 0:02:54.1]} 16. Bxb4 {[%clk 0:02:40.6]} 16... Qxb4 {[%clk
0:02:52.9]} 17. b3 {[%clk 0:02:41.2]} 17... O-O {[%clk 0:02:51.2]} 18. Rad1
{[%clk 0:02:39.8]} 18... Rad8 {[%clk 0:02:48.5]} 19. Rfe1 {[%clk 0:02:39.3]}
19... a5 {[%clk 0:02:46.2]} 20. Qe2 {[%clk 0:02:34.3]} 20... Rfe8 {[%clk
0:02:41]} 21. Ne5 {[%clk 0:02:28.6]} 21... a4 {[%clk 0:02:31.2]} 22. Nd3 {[%clk
0:02:13.3]} 22... Qc3 {[%clk 0:02:21.8]} 23. Qb2 {[%clk 0:01:51.9]} 23... Qxb2
{[%clk 0:02:18.4]} 24. Nxb2 {[%clk 0:01:52.8]} 24... axb3 {[%clk 0:02:15.9]} 25.
axb3 {[%clk 0:01:53.7]} 25... Ra8 {[%clk 0:02:13]} 26. Ra1 {[%clk 0:01:53.1]}
26... Kf8 {[%clk 0:02:10.3]} 27. Kf1 {[%clk 0:01:48.9]} 27... b5 {[%clk
0:02:02.6]} 28. Nd3 {[%clk 0:01:42.9]} 28... bxc4 {[%clk 0:01:56.7]} 29. bxc4
{[%clk 0:01:42.4]} 29... Nb6 {[%clk 0:01:38.3]} 30. Ne5 {[%clk 0:01:39.2]} 30...
Nfd7 {[%clk 0:01:27.7]} 31. Nxc6 {[%clk 0:01:36.6]} 31... Nxc4 {[%clk 0:01:26]}
32. Ne4 {[%clk 0:01:29.1]} 32... Nf6 {[%clk 0:01:17.6]} 33. Nxf6 {[%clk
0:01:25.9]} 33... gxf6 {[%clk 0:01:17.6]} 34. Rxa8 {[%clk 0:01:08.5]} 34... Rxa8
{[%clk 0:01:16]} 35. Rd1 {[%clk 0:01:08.9]} 35... Nb6 {[%clk 0:01:13.5]} 36. Nb4
{[%clk 0:01:03.4]} 36... Rd8 {[%clk 0:01:11.6]} 37. f3 {[%clk 0:00:59.3]} 37...
Nd5 {[%clk 0:01:11.1]} 38. Nxd5 {[%clk 0:00:59.1]} 38... Rxd5 {[%clk 0:01:10.2]}
39. g4 {[%clk 0:00:58]} 39... f5 {[%clk 0:01:06.4]} 40. Ke2 {[%clk 0:00:58.4]}
40... fxg4 {[%clk 0:01:05.3]} 41. fxg4 {[%clk 0:00:57.8]} 41... Kg7 {[%clk
0:01:05.3]} 42. Ke3 {[%clk 0:00:55.5]} 42... Kf6 {[%clk 0:01:04.1]} 43. Ke4
{[%clk 0:00:55.2]} 43... Rg5 {[%clk 0:01:03.5]} 44. Kf4 {[%clk 0:00:50.1]} 44...
Ra5 {[%clk 0:01:01.9]} 45. Rf1 {[%clk 0:00:46.4]} 1/2-1/2

[Event "*** Titled Tuesday Blitz"]
[Site "Chess.com"]
[Date "2020.05.19"]
[Round "3"]
[White "FranciscodelaF"]
[Black "FontVella8"]
[Result "0-1"]
[WhiteElo "2349"]
[BlackElo "2552"]
[TimeControl "180+1"]
[EndTime "12:27:48 PDT"]
[Termination "FontVella8 won by resignation"]

1. d4 {[%clk 0:03:00.9]} 1... Nf6 {[%clk 0:02:59.6]} 2. c4 {[%clk 0:03:00.2]}
2... b6 {[%clk 0:02:59.1]} 3. f3 {[%clk 0:02:57.1]} 3... Bb7 {[%clk 0:02:57.3]}
4. Nc3 {[%clk 0:02:55]} 4... g6 {[%clk 0:02:53]} 5. e4 {[%clk 0:02:55]} 5... Bg7
{[%clk 0:02:53.3]} 6. Be3 {[%clk 0:02:51.5]} 6... O-O {[%clk 0:02:53.2]} 7. Qd2
{[%clk 0:02:46]} 7... d6 {[%clk 0:02:48]} 8. h4 {[%clk 0:02:33.8]} 8... Nbd7
{[%clk 0:02:42.6]} 9. Nge2 {[%clk 0:02:30.9]} 9... e5 {[%clk 0:02:42.2]} 10.
O-O-O {[%clk 0:02:30.9]} 10... a5 {[%clk 0:02:39.9]} 11. h5 {[%clk 0:02:30.7]}
11... exd4 {[%clk 0:02:31.7]} 12. Bxd4 {[%clk 0:02:26.4]} 12... Nc5 {[%clk
0:02:30.1]} 13. g4 {[%clk 0:02:07.4]} 13... Ne6 {[%clk 0:02:14]} 14. Be3 {[%clk
0:02:03]} 14... a4 {[%clk 0:02:13.9]} 15. Bh6 {[%clk 0:01:57.2]} 15... Qd7
{[%clk 0:01:17]} 16. hxg6 {[%clk 0:01:42.9]} 16... fxg6 {[%clk 0:01:16.5]} 17.
Bxg7 {[%clk 0:01:31.8]} 17... Qxg7 {[%clk 0:01:14.4]} 18. Bg2 {[%clk 0:01:25.7]}
18... Nc5 {[%clk 0:01:11.2]} 19. Ng3 {[%clk 0:01:13.9]} 19... Nfd7 {[%clk
0:01:03.9]} 20. f4 {[%clk 0:01:04.1]} 20... a3 {[%clk 0:00:30.2]} 21. b3 {[%clk
0:01:01.9]} 21... Rxf4 {[%clk 0:00:17.8]} 22. e5 {[%clk 0:00:53.1]} 22... Bxg2
{[%clk 0:00:15.5]} 23. Qxf4 {[%clk 0:00:51.3]} 23... Bxh1 {[%clk 0:00:11.5]} 24.
Rxh1 {[%clk 0:00:50]} 24... Nxe5 {[%clk 0:00:11.7]} 25. Nce4 {[%clk 0:00:45.8]}
25... Ned3+ {[%clk 0:00:11.7]} 26. Kd2 {[%clk 0:00:46.2]} 26... Qb2+ {[%clk
0:00:11.5]} 27. Ke3 {[%clk 0:00:45.8]} 27... Nxf4 {[%clk 0:00:11.6]} 28. Nf6+
{[%clk 0:00:46.1]} 28... Qxf6 {[%clk 0:00:10.9]} 29. Ne4 {[%clk 0:00:46]} 29...
Qe5 {[%clk 0:00:10.8]} 0-1

[Event "*** Titled Tuesday Blitz"]
[Site "Chess.com"]
[Date "2020.05.19"]
[Round "3"]
[White "ManuDavid2910"]
[Black "Camels1981"]
[Result "1/2-1/2"]
[WhiteElo "2686"]
[BlackElo "2346"]
[TimeControl "180+1"]
[EndTime "12:27:50 PDT"]
[Termination "Game drawn by agreement"]

1. e4 {[%clk 0:03:00.9]} 1... e5 {[%clk 0:02:57.9]} 2. Nf3 {[%clk 0:03:01.1]}
2... Nc6 {[%clk 0:02:57.7]} 3. Bc4 {[%clk 0:03:01.6]} 3... Bc5 {[%clk
0:02:56.1]} 4. O-O {[%clk 0:03:02.5]} 4... Nf6 {[%clk 0:02:55.5]} 5. d4 {[%clk
0:03:03]} 5... exd4 {[%clk 0:02:45.7]} 6. e5 {[%clk 0:03:02.9]} 6... d5 {[%clk
0:02:44.5]} 7. exf6 {[%clk 0:03:02.7]} 7... dxc4 {[%clk 0:02:44]} 8. fxg7 {[%clk
0:03:03.2]} 8... Rg8 {[%clk 0:02:43.4]} 9. Re1+ {[%clk 0:03:03.8]} 9... Be6
{[%clk 0:02:43.1]} 10. Ng5 {[%clk 0:03:03.8]} 10... Qd5 {[%clk 0:02:06.8]} 11.
Nc3 {[%clk 0:03:03.3]} 11... Qf5 {[%clk 0:02:03.3]} 12. Nce4 {[%clk 0:03:03]}
12... O-O-O {[%clk 0:01:58.4]} 13. Ng3 {[%clk 0:02:59]} 13... Qg6 {[%clk
0:01:53.4]} 14. Nxe6 {[%clk 0:02:58.4]} 14... fxe6 {[%clk 0:01:51.3]} 15. Qe2
{[%clk 0:02:59.3]} 15... d3 {[%clk 0:01:43.2]} 16. cxd3 {[%clk 0:02:50.3]} 16...
cxd3 {[%clk 0:01:41.8]} 17. Qxe6+ {[%clk 0:02:50.2]} 17... Qxe6 {[%clk
0:01:40.7]} 18. Rxe6 {[%clk 0:02:51.1]} 18... d2 {[%clk 0:01:34.3]} 19. Bxd2
{[%clk 0:02:51.1]} 19... Rxd2 {[%clk 0:01:34.2]} 20. Ne4 {[%clk 0:02:52]} 20...
Rc2 {[%clk 0:01:28.3]} 21. Rd1 {[%clk 0:02:33.4]} 21... Be7 {[%clk 0:01:02.5]}
22. b4 {[%clk 0:02:32]} 22... Rxg7 {[%clk 0:00:57.4]} 23. b5 {[%clk 0:02:31.1]}
23... Nd4 {[%clk 0:00:54.6]} 24. Rh6 {[%clk 0:02:25.7]} 24... Nxb5 {[%clk
0:00:54.6]} 25. h4 {[%clk 0:02:22.3]} 25... Nd6 {[%clk 0:00:54.6]} 26. Ng3
{[%clk 0:02:22]} 26... Rf7 {[%clk 0:00:52.9]} 27. f3 {[%clk 0:02:20]} 27... b6
{[%clk 0:00:52.8]} 28. Re1 {[%clk 0:02:18.8]} 28... Nf5 {[%clk 0:00:51.3]} 29.
Nxf5 {[%clk 0:02:18.2]} 29... Bc5+ {[%clk 0:00:51]} 30. Ne3 {[%clk 0:02:17.5]}
30... Re7 {[%clk 0:00:50.9]} 31. Rc6 {[%clk 0:02:10.3]} 31... Bxe3+ {[%clk
0:00:50.3]} 32. Rxe3 {[%clk 0:02:09.9]} 32... Rxg2+ {[%clk 0:00:45.4]} 33. Kxg2
{[%clk 0:02:09.6]} 33... Rxe3 {[%clk 0:00:46.3]} 34. Kg3 {[%clk 0:02:03.6]}
34... Kd7 {[%clk 0:00:38.7]} 35. Rh6 {[%clk 0:02:02.5]} 35... Re7 {[%clk
0:00:38.5]} 36. f4 {[%clk 0:02:02.9]} 36... c5 {[%clk 0:00:37.6]} 37. f5 {[%clk
0:02:03]} 37... c4 {[%clk 0:00:37.9]} 38. f6 {[%clk 0:01:57.4]} 38... Rf7 {[%clk
0:00:33.5]} 39. Kf4 {[%clk 0:01:57.5]} 39... c3 {[%clk 0:00:33]} 40. Ke3 {[%clk
0:01:57.8]} 40... Ke6 {[%clk 0:00:31.8]} 41. Kd3 {[%clk 0:01:57.7]} 41... Rxf6
{[%clk 0:00:30.5]} 42. Rxh7 {[%clk 0:01:57.9]} 42... Rf3+ {[%clk 0:00:30.5]} 43.
Kc2 {[%clk 0:01:57]} 43... Rh3 {[%clk 0:00:30]} 44. Rxa7 {[%clk 0:01:55.2]}
44... Rxh4 {[%clk 0:00:29.9]} 45. Rb7 {[%clk 0:01:53.1]} 45... Rb4 {[%clk
0:00:28.5]} 46. Kxc3 {[%clk 0:01:52.4]} 46... Rb1 {[%clk 0:00:27.5]} 47. Kc2
{[%clk 0:01:49.6]} 47... Rb4 {[%clk 0:00:26.4]} 48. a3 {[%clk 0:01:48.6]} 48...
Rb5 {[%clk 0:00:25.4]} 49. a4 {[%clk 0:01:46]} 49... Rb4 {[%clk 0:00:25.4]} 50.
Kc3 {[%clk 0:01:45.9]} 50... Rxa4 {[%clk 0:00:25.3]} 51. Rxb6+ {[%clk
0:01:45.6]} 51... Kd5 {[%clk 0:00:25.4]} 52. Rb5+ {[%clk 0:01:45.3]} 52... Kc6
{[%clk 0:00:24.7]} 53. Rh5 {[%clk 0:01:45.1]} 53... Ra3+ {[%clk 0:00:24.6]} 54.
Kb4 {[%clk 0:01:43.6]} 1/2-1/2

[Event "*** Titled Tuesday Blitz"]
[Site "Chess.com"]
[Date "2020.05.19"]
[Round "3"]
[White "ENajer77"]
[Black "manmanlai1"]
[Result "1-0"]
[WhiteElo "2550"]
[BlackElo "2348"]
[TimeControl "180+1"]
[EndTime "12:27:51 PDT"]
[Termination "ENajer77 won by resignation"]

1. d4 {[%clk 0:03:00.9]} 1... d5 {[%clk 0:02:59.4]} 2. c4 {[%clk 0:03:00.4]}
2... e6 {[%clk 0:03:00]} 3. Nc3 {[%clk 0:02:59.9]} 3... Bb4 {[%clk 0:03:00.5]}
4. cxd5 {[%clk 0:02:53]} 4... exd5 {[%clk 0:03:00.2]} 5. Bf4 {[%clk 0:02:52.7]}
5... c6 {[%clk 0:02:59.1]} 6. e3 {[%clk 0:02:51.8]} 6... Bf5 {[%clk 0:02:53.4]}
7. Qb3 {[%clk 0:02:50.2]} 7... Qb6 {[%clk 0:02:45.7]} 8. Nf3 {[%clk 0:02:37]}
8... Nd7 {[%clk 0:02:37.9]} 9. Be2 {[%clk 0:02:37.1]} 9... Ngf6 {[%clk
0:02:36.6]} 10. O-O {[%clk 0:02:36.9]} 10... O-O {[%clk 0:02:35.1]} 11. Na4
{[%clk 0:02:33.5]} 11... Qa5 {[%clk 0:02:23.7]} 12. a3 {[%clk 0:02:33]} 12...
Be7 {[%clk 0:02:22.6]} 13. Nc3 {[%clk 0:02:23.4]} 13... Qb6 {[%clk 0:02:16.7]}
14. Qa2 {[%clk 0:02:22.2]} 14... Ne4 {[%clk 0:02:05.1]} 15. Rac1 {[%clk
0:02:19]} 15... Rfe8 {[%clk 0:02:01.8]} 16. h3 {[%clk 0:02:17]} 16... Bd6 {[%clk
0:01:32.5]} 17. Bxd6 {[%clk 0:01:54.6]} 17... Nxd6 {[%clk 0:01:33.4]} 18. Rfd1
{[%clk 0:01:54.1]} 18... Re6 {[%clk 0:01:19.1]} 19. b4 {[%clk 0:01:38]} 19...
Rae8 {[%clk 0:01:16.7]} 20. b5 {[%clk 0:01:36.7]} 20... Rh6 {[%clk 0:00:59]} 21.
bxc6 {[%clk 0:01:30.1]} 21... bxc6 {[%clk 0:00:59.9]} 22. Na4 {[%clk 0:01:16]}
22... Qa5 {[%clk 0:00:55.4]} 23. Nc5 {[%clk 0:01:15]} 23... Nf6 {[%clk
0:00:49.9]} 24. Ne5 {[%clk 0:01:12]} 24... Rc8 {[%clk 0:00:20.3]} 25. Qb3 {[%clk
0:01:07.7]} 25... Qd8 {[%clk 0:00:18.9]} 26. Nb7 {[%clk 0:01:00.3]} 26... Nxb7
{[%clk 0:00:15.2]} 27. Qxb7 {[%clk 0:00:59.2]} 27... Ne4 {[%clk 0:00:14.7]} 28.
Rxc6 {[%clk 0:00:52.9]} 28... Rcxc6 {[%clk 0:00:11.1]} 29. Nxc6 {[%clk
0:00:52.5]} 29... Qe8 {[%clk 0:00:09.7]} 30. Ne7+ {[%clk 0:00:51.6]} 1-0

[Event "*** Titled Tuesday Blitz"]
[Site "Chess.com"]
[Date "2020.05.19"]
[Round "3"]
[White "YQPerez"]
[Black "nurgyulsalimova"]
[Result "1-0"]
[WhiteElo "2944"]
[BlackElo "2579"]
[TimeControl "180+1"]
[EndTime "12:27:52 PDT"]
[Termination "YQPerez won by checkmate"]

1. e4 {[%clk 0:03:00.9]} 1... c6 {[%clk 0:02:58.4]} 2. c4 {[%clk 0:02:59.7]}
2... d5 {[%clk 0:02:58.5]} 3. exd5 {[%clk 0:02:59.7]} 3... cxd5 {[%clk
0:02:58.8]} 4. cxd5 {[%clk 0:03:00.4]} 4... Nf6 {[%clk 0:02:59.1]} 5. Qa4+
{[%clk 0:02:59.8]} 5... Nbd7 {[%clk 0:02:51.5]} 6. Nc3 {[%clk 0:02:59.6]} 6...
g6 {[%clk 0:02:46.9]} 7. Bc4 {[%clk 0:02:59.8]} 7... Bg7 {[%clk 0:02:46.4]} 8.
Nf3 {[%clk 0:02:59.8]} 8... O-O {[%clk 0:02:45.6]} 9. d3 {[%clk 0:03:00.2]} 9...
b5 {[%clk 0:02:44.9]} 10. Bxb5 {[%clk 0:02:09]} 10... Nb6 {[%clk 0:02:35.8]} 11.
Qh4 {[%clk 0:02:09.1]} 11... Bb7 {[%clk 0:02:03.3]} 12. O-O {[%clk 0:01:52.9]}
12... Nfxd5 {[%clk 0:01:16.3]} 13. Ne4 {[%clk 0:01:34.2]} 13... Rc8 {[%clk
0:00:51.2]} 14. Bh6 {[%clk 0:01:22]} 14... a6 {[%clk 0:00:42.3]} 15. Nfg5 {[%clk
0:01:06.3]} 15... Nf6 {[%clk 0:00:04.6]} 16. Bxg7 {[%clk 0:01:02.2]} 16... Kxg7
{[%clk 0:00:04.7]} 17. Nxf6 {[%clk 0:01:02.3]} 17... Kxf6 {[%clk 0:00:04.4]} 18.
Rfe1 {[%clk 0:00:32]} 18... Qd5 {[%clk 0:00:04.5]} 19. Ne6+ {[%clk 0:00:27.5]}
19... g5 {[%clk 0:00:04.8]} 20. Qh6+ {[%clk 0:00:27.7]} 20... Kf5 {[%clk
0:00:04.7]} 21. Qxg5# {[%clk 0:00:27.9]} 1-0